[Event "Titled Tuesday Blitz March 07 Early 2023"]
[White "Djokovic, Nebojsa"]
[Black "Gonzalez, Francisco Silva"]
[WhiteFideId "938300"]
[BlackFideId "1512285"]
[WhiteElo "2584"]
[BlackElo "2074"]
[Result "0-1"]
[Round "07"]
[TimeControl "180+2"]
[Date "2023.03.07"]
[WhiteClock "0:00:07"]
[BlackClock "0:01:42"]

1. e4 {[%clk 0:03:00]}  e5 {[%clk 0:02:59]} 2. Nf3 {[%clk 0:03:00]}  Nc6 {[%clk 0:02:54]} 3. Bb5 {[%clk 0:03:01]}  a6 {[%clk 0:02:53]} 4. Ba4 {[%clk 0:03:01]}  Nf6 {[%clk 0:02:53]} 5. O-O {[%clk 0:03:01]}  b5 {[%clk 0:02:51]} 6. Bb3 {[%clk 0:03:02]}  Bc5 {[%clk 0:02:52]} 7. Nc3 {[%clk 0:03:01]}  d6 {[%clk 0:02:50]} 8. Nd5 {[%clk 0:02:55]}  Bg4 {[%clk 0:02:49]} 9. Nxf6+ {[%clk 0:02:49]}  Qxf6 {[%clk 0:02:48]} 10. Bd5 {[%clk 0:02:50]}  Nd4 {[%clk 0:02:49]} 11. Bxa8 {[%clk 0:01:55]}  Nxf3+ {[%clk 0:02:46]} 12. Kh1 {[%clk 0:01:55]}  Ke7 {[%clk 0:02:43]} 13. d4 {[%clk 0:01:48]}  Bxd4 {[%clk 0:02:39]} 14. Bd5 {[%clk 0:00:52]}  Nxh2 {[%clk 0:02:37]} 15. f3 {[%clk 0:00:33]}  Nxf1 {[%clk 0:02:35]} 16. Qe1 {[%clk 0:00:19]}  Bxf3 {[%clk 0:02:21]} 17. c3 {[%clk 0:00:12]}  Bb6 {[%clk 0:02:20]} 18. Bd2 {[%clk 0:00:04]}  Nxd2 {[%clk 0:02:19]} 19. Qg3 {[%clk 0:00:04]}  Qh6+ {[%clk 0:02:16]} 20. Qh2 {[%clk 0:00:04]}  Bxe4 {[%clk 0:02:07]} 21. Bxe4 {[%clk 0:00:03]}  Nxe4 {[%clk 0:02:06]} 22. g4 {[%clk 0:00:04]}  Nf2+ {[%clk 0:02:05]} 23. Kg2 {[%clk 0:00:04]}  Qxh2+ {[%clk 0:02:04]} 24. Kxh2 {[%clk 0:00:05]}  Nxg4+ {[%clk 0:02:05]} 25. Kh3 {[%clk 0:00:06]}  f5 {[%clk 0:02:05]} 26. Rf1 {[%clk 0:00:06]}  g6 {[%clk 0:02:05]} 27. Kh4 {[%clk 0:00:06]}  Kf6 {[%clk 0:02:05]} 28. c4 {[%clk 0:00:07]}  h5 {[%clk 0:02:03]} 29. cxb5 {[%clk 0:00:06]}  Bf2+ {[%clk 0:02:02]} 30. Kh3 {[%clk 0:00:07]}  axb5 {[%clk 0:02:02]} 31. b3 {[%clk 0:00:07]}  c5 {[%clk 0:02:01]} 32. a4 {[%clk 0:00:08]}  bxa4 {[%clk 0:02:01]} 33. bxa4 {[%clk 0:00:08]}  g5 {[%clk 0:02:00]} 34. a5 {[%clk 0:00:08]}  e4 {[%clk 0:01:59]} 35. a6 {[%clk 0:00:09]}  Ra8 {[%clk 0:01:58]} 36. Ra1 {[%clk 0:00:09]}  c4 {[%clk 0:01:57]} 37. Ra5 {[%clk 0:00:08]}  c3 {[%clk 0:01:55]} 38. Ra2 {[%clk 0:00:06]}  Be3 {[%clk 0:01:53]} 39. Kg2 {[%clk 0:00:05]}  Bd2 {[%clk 0:01:52]} 40. Kf1 {[%clk 0:00:05]}  Rxa6 {[%clk 0:01:49]} 41. Rxa6 {[%clk 0:00:05]}  c2 {[%clk 0:01:48]} 42. Rxd6+ {[%clk 0:00:04]}  Ke5 {[%clk 0:01:48]} 43. Rxd2 {[%clk 0:00:02]}  c1=Q+ {[%clk 0:01:48]} 44. Ke2 {[%clk 0:00:03]}  Qxd2+ {[%clk 0:01:48]} 45. Kxd2 {[%clk 0:00:03]}  f4 {[%clk 0:01:48]} 46. Ke2 {[%clk 0:00:04]}  f3+ {[%clk 0:01:49]} 47. Kf1 {[%clk 0:00:04]}  e3 {[%clk 0:01:49]} 48. Kg1 {[%clk 0:00:04]}  e2 {[%clk 0:01:48]} 49. Kh1 {[%clk 0:00:04]}  Kd6 {[%clk 0:01:48]} 50. Kg1 {[%clk 0:00:04]}  Kc7 {[%clk 0:01:48]} 51. Kh1 {[%clk 0:00:04]}  Kb8 {[%clk 0:01:48]} 52. Kg1 {[%clk 0:00:04]}  h4 {[%clk 0:01:48]} 53. Kh1 {[%clk 0:00:05]}  h3 {[%clk 0:01:48]} 54. Kg1 {[%clk 0:00:05]}  e1=B {[%clk 0:01:46]} 55. Kh1 {[%clk 0:00:06]}  Bg3 {[%clk 0:01:45]} 56. Kg1 {[%clk 0:00:06]}  f2+ {[%clk 0:01:44]} 57. Kh1 {[%clk 0:00:07]}  f1=R# {[%clk 0:01:42]} 0-1


[Site "https://www.chess.com"]

[Event "Titled Tuesday Blitz March 07 Early 2023"]
[White "Postnikov, Artem"]
[Black "Shapiro, Viktor"]
[WhiteFideId "34153575"]
[BlackFideId "4175700"]
[WhiteElo "2243"]
[BlackElo "2152"]
[Result "0-1"]
[Round "07"]
[TimeControl "180+2"]
[Date "2023.03.07"]
[WhiteClock "0:00:02"]
[BlackClock "0:00:11"]

1. d4 {[%clk 0:02:59]}  Nf6 {[%clk 0:03:00]} 2. c4 {[%clk 0:02:59]}  c5 {[%clk 0:03:00]} 3. d5 {[%clk 0:02:59]}  e6 {[%clk 0:03:01]} 4. Nc3 {[%clk 0:02:58]}  exd5 {[%clk 0:03:01]} 5. cxd5 {[%clk 0:02:59]}  Bd6 {[%clk 0:03:02]} 6. Nf3 {[%clk 0:02:56]}  Bc7 {[%clk 0:02:57]} 7. e4 {[%clk 0:02:56]}  d6 {[%clk 0:02:57]} 8. Bd3 {[%clk 0:02:55]}  O-O {[%clk 0:02:56]} 9. O-O {[%clk 0:02:56]}  a6 {[%clk 0:02:56]} 10. a4 {[%clk 0:02:56]}  Re8 {[%clk 0:02:57]} 11. Bf4 {[%clk 0:02:54]}  Nbd7 {[%clk 0:02:52]} 12. Re1 {[%clk 0:02:49]}  Nf8 {[%clk 0:02:53]} 13. e5 {[%clk 0:02:32]}  dxe5 {[%clk 0:02:52]} 14. Bxe5 {[%clk 0:02:26]}  Bg4 {[%clk 0:02:44]} 15. d6 {[%clk 0:02:21]}  Bxd6 {[%clk 0:02:37]} 16. Bxd6 {[%clk 0:02:15]}  Rxe1+ {[%clk 0:02:36]} 17. Qxe1 {[%clk 0:02:14]}  Qxd6 {[%clk 0:02:36]} 18. Rd1 {[%clk 0:02:00]}  Qf4 {[%clk 0:02:24]} 19. Qe3 {[%clk 0:01:48]}  Qb4 {[%clk 0:02:20]} 20. Ne4 {[%clk 0:01:34]}  Nxe4 {[%clk 0:02:15]} 21. Qxe4 {[%clk 0:01:31]}  Re8 {[%clk 0:02:06]} 22. Qxb4 {[%clk 0:01:25]}  cxb4 {[%clk 0:02:07]} 23. Bc4 {[%clk 0:01:20]}  Be6 {[%clk 0:01:54]} 24. Bxe6 {[%clk 0:01:17]}  Nxe6 {[%clk 0:01:52]} 25. g3 {[%clk 0:01:14]}  Nc5 {[%clk 0:01:49]} 26. a5 {[%clk 0:01:05]}  f6 {[%clk 0:01:47]} 27. Rd4 {[%clk 0:01:01]}  Nb3 {[%clk 0:01:37]} 28. Rxb4 {[%clk 0:00:44]}  Nxa5 {[%clk 0:01:38]} 29. Rb6 {[%clk 0:00:45]}  Re7 {[%clk 0:01:32]} 30. Nd4 {[%clk 0:00:40]}  Rd7 {[%clk 0:01:29]} 31. Ne6 {[%clk 0:00:31]}  Nc4 {[%clk 0:01:24]} 32. Rb4 {[%clk 0:00:31]}  b5 {[%clk 0:01:23]} 33. b3 {[%clk 0:00:24]}  Ne5 {[%clk 0:01:06]} 34. Nc5 {[%clk 0:00:22]}  Rd1+ {[%clk 0:01:06]} 35. Kg2 {[%clk 0:00:22]}  Ra1 {[%clk 0:01:05]} 36. Rd4 {[%clk 0:00:20]}  Ra2 {[%clk 0:01:02]} 37. Rd8+ {[%clk 0:00:16]}  Kf7 {[%clk 0:01:02]} 38. Ra8 {[%clk 0:00:13]}  a5 {[%clk 0:01:00]} 39. Ra7+ {[%clk 0:00:14]}  Kg6 {[%clk 0:00:55]} 40. Ne6 {[%clk 0:00:15]}  Nd3 {[%clk 0:00:52]} 41. Rxg7+ {[%clk 0:00:13]}  Kf5 {[%clk 0:00:53]} 42. Nd4+ {[%clk 0:00:13]}  Ke4 {[%clk 0:00:53]} 43. Nxb5 {[%clk 0:00:10]}  Rxf2+ {[%clk 0:00:53]} 44. Kh3 {[%clk 0:00:10]}  Rb2 {[%clk 0:00:36]} 45. Ra7 {[%clk 0:00:08]}  Nf2+ {[%clk 0:00:31]} 46. Kh4 {[%clk 0:00:08]}  Rxb3 {[%clk 0:00:22]} 47. Rxa5 {[%clk 0:00:07]}  Nd3 {[%clk 0:00:19]} 48. Nd6+ {[%clk 0:00:07]}  Ke3 {[%clk 0:00:19]} 49. Nf5+ {[%clk 0:00:07]}  Kf2 {[%clk 0:00:16]} 50. Ra2+ {[%clk 0:00:07]}  Kg1 {[%clk 0:00:16]} 51. h3 {[%clk 0:00:06]}  Nf2 {[%clk 0:00:16]} 52. Ra1+ {[%clk 0:00:02]}  Kg2 {[%clk 0:00:16]} 53. Ra2 {[%clk 0:00:03]}  Rf3 {[%clk 0:00:15]} 54. Ra5 {[%clk 0:00:02]}  Nxh3 {[%clk 0:00:12]} 55. Ra2+ {[%clk 0:00:01]}  Nf2 {[%clk 0:00:13]} 56. Nd4 {[%clk 0:00:01]}  Rxg3 {[%clk 0:00:11]} 57. Kh5 {[%clk 0:00:02]}  Rh3# {[%clk 0:00:11]} 0-1


[Site "https://www.chess.com"]

[Event "Titled Tuesday Blitz March 07 Early 2023"]
[White "Mikhalsky, Vladimir"]
[Black "Sekar, B"]
[WhiteFideId "14144352"]
[BlackFideId "5043743"]
[WhiteElo "2272"]
[BlackElo "2258"]
[Result "0-1"]
[Round "07"]
[TimeControl "180+2"]
[Date "2023.03.07"]
[WhiteClock "0:00:01"]
[BlackClock "0:00:10"]

1. d4 {[%clk 0:03:00]}  Nf6 {[%clk 0:02:59]} 2. c4 {[%clk 0:02:59]}  e6 {[%clk 0:03:00]} 3. Nf3 {[%clk 0:02:58]}  d5 {[%clk 0:02:59]} 4. g3 {[%clk 0:02:58]}  dxc4 {[%clk 0:02:59]} 5. Bg2 {[%clk 0:02:57]}  c5 {[%clk 0:03:00]} 6. O-O {[%clk 0:02:57]}  Nc6 {[%clk 0:03:00]} 7. Qa4 {[%clk 0:02:54]}  Bd7 {[%clk 0:03:00]} 8. dxc5 {[%clk 0:02:53]}  Bxc5 {[%clk 0:03:01]} 9. Qxc4 {[%clk 0:02:52]}  Be7 {[%clk 0:03:02]} 10. Rd1 {[%clk 0:02:51]}  Rc8 {[%clk 0:03:02]} 11. Nc3 {[%clk 0:02:45]}  O-O {[%clk 0:03:02]} 12. Be3 {[%clk 0:02:43]}  Na5 {[%clk 0:02:43]} 13. Qd3 {[%clk 0:02:34]}  Nc4 {[%clk 0:02:42]} 14. Bc1 {[%clk 0:02:21]}  Qc7 {[%clk 0:02:33]} 15. b3 {[%clk 0:02:15]}  Nb6 {[%clk 0:02:23]} 16. Bb2 {[%clk 0:02:09]}  Rfd8 {[%clk 0:02:22]} 17. Nb5 {[%clk 0:02:01]}  Bxb5 {[%clk 0:02:13]} 18. Qxb5 {[%clk 0:02:01]}  Qc2 {[%clk 0:02:07]} 19. Rxd8+ {[%clk 0:01:53]}  Rxd8 {[%clk 0:02:06]} 20. Bd4 {[%clk 0:01:45]}  Rd5 {[%clk 0:01:49]} 21. Qd3 {[%clk 0:01:36]}  Qxd3 {[%clk 0:01:48]} 22. exd3 {[%clk 0:01:36]}  Bc5 {[%clk 0:01:30]} 23. Bxc5 {[%clk 0:01:18]}  Rxc5 {[%clk 0:01:30]} 24. Nd4 {[%clk 0:01:16]}  Nfd5 {[%clk 0:01:30]} 25. a3 {[%clk 0:01:08]}  a6 {[%clk 0:01:24]} 26. b4 {[%clk 0:01:08]}  Rc3 {[%clk 0:01:24]} 27. Bf1 {[%clk 0:00:57]}  Kf8 {[%clk 0:01:21]} 28. Kg2 {[%clk 0:00:57]}  Ke7 {[%clk 0:01:20]} 29. Nf3 {[%clk 0:00:52]}  f6 {[%clk 0:01:11]} 30. Nd2 {[%clk 0:00:51]}  Rc2 {[%clk 0:01:03]} 31. Ne4 {[%clk 0:00:35]}  Na4 {[%clk 0:01:02]} 32. Kf3 {[%clk 0:00:32]}  f5 {[%clk 0:00:54]} 33. Ng5 {[%clk 0:00:25]}  h6 {[%clk 0:00:54]} 34. Nh3 {[%clk 0:00:25]}  g5 {[%clk 0:00:54]} 35. g4 {[%clk 0:00:23]}  Nac3 {[%clk 0:00:38]} 36. Ng1 {[%clk 0:00:21]}  Nf4 {[%clk 0:00:35]} 37. gxf5 {[%clk 0:00:20]}  exf5 {[%clk 0:00:35]} 38. d4 {[%clk 0:00:20]}  Ne4 {[%clk 0:00:22]} 39. h4 {[%clk 0:00:14]}  Rxf2+ {[%clk 0:00:21]} 40. Ke3 {[%clk 0:00:14]}  Nd5+ {[%clk 0:00:16]} 41. Kd3 {[%clk 0:00:13]}  Rd2+ {[%clk 0:00:14]} 42. Kc4 {[%clk 0:00:13]}  Kd6 {[%clk 0:00:15]} 43. Kb3 {[%clk 0:00:12]}  Rxd4 {[%clk 0:00:14]} 44. Nf3 {[%clk 0:00:11]}  Nd2+ {[%clk 0:00:10]} 45. Nxd2 {[%clk 0:00:09]}  Rxd2 {[%clk 0:00:10]} 46. hxg5 {[%clk 0:00:09]}  hxg5 {[%clk 0:00:10]} 47. b5 {[%clk 0:00:07]}  axb5 {[%clk 0:00:10]} 48. Bxb5 {[%clk 0:00:06]}  g4 {[%clk 0:00:10]} 49. Rh1 {[%clk 0:00:05]}  f4 {[%clk 0:00:10]} 50. Rh6+ {[%clk 0:00:05]}  Ke5 {[%clk 0:00:11]} 51. Bd7 {[%clk 0:00:05]}  Nf6 {[%clk 0:00:10]} 52. Rxf6 {[%clk 0:00:02]}  Kxf6 {[%clk 0:00:10]} 53. Bxg4 {[%clk 0:00:03]}  f3 {[%clk 0:00:10]} 54. Kc3 {[%clk 0:00:02]}  Rf2 {[%clk 0:00:09]} 55. Kd3 {[%clk 0:00:01]}  Kg5 {[%clk 0:00:10]} 0-1


[Site "https://www.chess.com"]

[Event "Titled Tuesday Blitz March 07 Early 2023"]
[White "Shevtchenko, Olesya"]
[Black "Gabdrakhmanov, Azat"]
[WhiteFideId "24131890"]
[BlackFideId "34189197"]
[WhiteElo "2003"]
[BlackElo "2266"]
[Result "0-1"]
[Round "07"]
[TimeControl "180+2"]
[Date "2023.03.07"]
[WhiteClock "0:00:01"]
[BlackClock "0:00:10"]

1. h4 {[%clk 0:02:14]}  e5 {[%clk 0:02:36]} 2. h5 {[%clk 0:02:15]}  Nc6 {[%clk 0:02:34]} 3. e4 {[%clk 0:02:13]}  Nf6 {[%clk 0:02:33]} 4. h6 {[%clk 0:02:11]}  gxh6 {[%clk 0:02:32]} 5. d3 {[%clk 0:02:09]}  d5 {[%clk 0:02:31]} 6. exd5 {[%clk 0:02:08]}  Qxd5 {[%clk 0:02:30]} 7. Nc3 {[%clk 0:02:06]}  Bb4 {[%clk 0:02:30]} 8. Bxh6 {[%clk 0:01:54]}  Bg4 {[%clk 0:02:26]} 9. Qd2 {[%clk 0:01:50]}  Bxc3 {[%clk 0:02:16]} 10. bxc3 {[%clk 0:01:46]}  O-O-O {[%clk 0:02:07]} 11. Bg7 {[%clk 0:01:40]}  Ne4 {[%clk 0:01:58]} 12. Qe3 {[%clk 0:01:37]}  Nxc3 {[%clk 0:01:57]} 13. Bxh8 {[%clk 0:01:36]}  Rxh8 {[%clk 0:01:50]} 14. Ne2 {[%clk 0:01:33]}  Bxe2 {[%clk 0:01:28]} 15. Bxe2 {[%clk 0:01:31]}  Nd4 {[%clk 0:01:29]} 16. Bd1 {[%clk 0:00:49]}  Kb8 {[%clk 0:01:11]} 17. Qg3 {[%clk 0:00:29]}  a6 {[%clk 0:00:51]} 18. Qg7 {[%clk 0:00:16]}  Re8 {[%clk 0:00:48]} 19. Rxh7 {[%clk 0:00:15]}  e4 {[%clk 0:00:31]} 20. Rh8 {[%clk 0:00:14]}  Rxh8 {[%clk 0:00:26]} 21. Qxh8+ {[%clk 0:00:14]}  Ka7 {[%clk 0:00:27]} 22. dxe4 {[%clk 0:00:11]}  Qxe4+ {[%clk 0:00:26]} 23. Kf1 {[%clk 0:00:12]}  Nxd1 {[%clk 0:00:25]} 24. Kg1 {[%clk 0:00:07]}  Nc3 {[%clk 0:00:16]} 25. Kh1 {[%clk 0:00:05]}  Nce2 {[%clk 0:00:15]} 26. c3 {[%clk 0:00:03]}  Nf5 {[%clk 0:00:14]} 27. Qh2 {[%clk 0:00:02]}  Qd3 {[%clk 0:00:12]} 28. Re1 {[%clk 0:00:01]}  Nxc3 {[%clk 0:00:10]} 0-1


[Site "https://www.chess.com"]

[Event "Titled Tuesday Blitz March 07 Early 2023"]
[White "Fikiet, Alex"]
[Black "Manukyan, Sargis V."]
[WhiteFideId "2052717"]
[BlackFideId "13303465"]
[WhiteElo "2432"]
[BlackElo "2236"]
[Result "0-1"]
[Round "07"]
[TimeControl "180+2"]
[Date "2023.03.07"]
[WhiteClock "0:00:12"]
[BlackClock "0:01:15"]

1. e4 {[%clk 0:03:00]}  c5 {[%clk 0:02:59]} 2. Nf3 {[%clk 0:03:00]}  Nc6 {[%clk 0:02:58]} 3. Bb5 {[%clk 0:03:01]}  g6 {[%clk 0:02:58]} 4. Bxc6 {[%clk 0:03:01]}  dxc6 {[%clk 0:02:59]} 5. d3 {[%clk 0:02:47]}  Bg7 {[%clk 0:02:58]} 6. h3 {[%clk 0:02:44]}  Nf6 {[%clk 0:02:53]} 7. Nc3 {[%clk 0:02:42]}  Nd7 {[%clk 0:02:48]} 8. Be3 {[%clk 0:02:36]}  e5 {[%clk 0:02:44]} 9. Qd2 {[%clk 0:02:35]}  h6 {[%clk 0:02:43]} 10. a3 {[%clk 0:01:47]}  b6 {[%clk 0:02:41]} 11. O-O {[%clk 0:01:45]}  Nf8 {[%clk 0:02:40]} 12. b4 {[%clk 0:01:45]}  cxb4 {[%clk 0:02:36]} 13. axb4 {[%clk 0:01:46]}  Ne6 {[%clk 0:02:36]} 14. b5 {[%clk 0:01:35]}  Bb7 {[%clk 0:02:32]} 15. bxc6 {[%clk 0:01:16]}  Bxc6 {[%clk 0:02:31]} 16. Ra2 {[%clk 0:01:16]}  Nd4 {[%clk 0:02:23]} 17. Nh2 {[%clk 0:01:10]}  h5 {[%clk 0:02:09]} 18. f4 {[%clk 0:00:48]}  exf4 {[%clk 0:02:07]} 19. Bxf4 {[%clk 0:00:48]}  O-O {[%clk 0:02:07]} 20. Bh6 {[%clk 0:00:38]}  Bxh6 {[%clk 0:01:59]} 21. Qxh6 {[%clk 0:00:37]}  Ne6 {[%clk 0:01:59]} 22. Qd2 {[%clk 0:00:31]}  Qg5 {[%clk 0:01:57]} 23. Qf2 {[%clk 0:00:26]}  Qc5 {[%clk 0:01:56]} 24. Qxc5 {[%clk 0:00:24]}  Nxc5 {[%clk 0:01:56]} 25. Nf3 {[%clk 0:00:24]}  Rfe8 {[%clk 0:01:55]} 26. Nd4 {[%clk 0:00:23]}  Bd7 {[%clk 0:01:54]} 27. Rfa1 {[%clk 0:00:22]}  a6 {[%clk 0:01:50]} 28. Nd5 {[%clk 0:00:22]}  Reb8 {[%clk 0:01:38]} 29. Nc7 {[%clk 0:00:19]}  Ra7 {[%clk 0:01:38]} 30. Nxa6 {[%clk 0:00:20]}  Rba8 {[%clk 0:01:28]} 31. Nb4 {[%clk 0:00:18]}  Rxa2 {[%clk 0:01:28]} 32. Rxa2 {[%clk 0:00:19]}  Rd8 {[%clk 0:01:26]} 33. Nd5 {[%clk 0:00:19]}  Be6 {[%clk 0:01:24]} 34. Nxe6 {[%clk 0:00:17]}  fxe6 {[%clk 0:01:25]} 35. Ne3 {[%clk 0:00:16]}  b5 {[%clk 0:01:23]} 36. Rb2 {[%clk 0:00:16]}  Rb8 {[%clk 0:01:23]} 37. Rb4 {[%clk 0:00:14]}  Na6 {[%clk 0:01:20]} 38. Rd4 {[%clk 0:00:13]}  Kf7 {[%clk 0:01:17]} 39. Rd6 {[%clk 0:00:13]}  Nb4 {[%clk 0:01:17]} 40. Kf2 {[%clk 0:00:12]}  Ke7 {[%clk 0:01:15]} 41. Rd4 {[%clk 0:00:12]}  Nc6 {[%clk 0:01:15]} 0-1


[Site "https://www.chess.com"]

[Event "Titled Tuesday Blitz March 07 Early 2023"]
[White "Migot, Tangi"]
[Black "Zherebtsova, Alexandra"]
[WhiteFideId "662445"]
[BlackFideId "24129518"]
[WhiteElo "2533"]
[BlackElo "2055"]
[Result "1-0"]
[Round "07"]
[TimeControl "180+2"]
[Date "2023.03.07"]
[WhiteClock "0:00:28"]
[BlackClock "0:00:45"]

1. Nf3 {[%clk 0:02:19]}  d5 {[%clk 0:02:59]} 2. d4 {[%clk 0:02:17]}  Nf6 {[%clk 0:02:57]} 3. c4 {[%clk 0:02:18]}  e6 {[%clk 0:02:57]} 4. Nc3 {[%clk 0:02:18]}  Be7 {[%clk 0:02:57]} 5. Bg5 {[%clk 0:02:19]}  O-O {[%clk 0:02:55]} 6. e3 {[%clk 0:02:19]}  h6 {[%clk 0:02:55]} 7. Bxf6 {[%clk 0:02:18]}  Bxf6 {[%clk 0:02:56]} 8. cxd5 {[%clk 0:02:15]}  exd5 {[%clk 0:02:53]} 9. Qb3 {[%clk 0:02:15]}  c6 {[%clk 0:02:52]} 10. Be2 {[%clk 0:02:15]}  Qb6 {[%clk 0:02:52]} 11. Nd2 {[%clk 0:02:10]}  Bf5 {[%clk 0:02:47]} 12. O-O {[%clk 0:02:08]}  Nd7 {[%clk 0:02:47]} 13. Rfc1 {[%clk 0:01:50]}  Rfe8 {[%clk 0:02:46]} 14. Na4 {[%clk 0:01:46]}  Qa5 {[%clk 0:02:20]} 15. Nc3 {[%clk 0:01:43]}  Qb6 {[%clk 0:02:19]} 16. Kf1 {[%clk 0:01:43]}  Rab8 {[%clk 0:02:08]} 17. h3 {[%clk 0:01:38]}  Qc7 {[%clk 0:02:03]} 18. Nf3 {[%clk 0:01:38]}  Qb6 {[%clk 0:02:01]} 19. Na4 {[%clk 0:01:33]}  Qxb3 {[%clk 0:01:45]} 20. axb3 {[%clk 0:01:34]}  Be7 {[%clk 0:01:42]} 21. Nc5 {[%clk 0:01:23]}  Nxc5 {[%clk 0:01:38]} 22. dxc5 {[%clk 0:01:23]}  a6 {[%clk 0:01:37]} 23. Nd4 {[%clk 0:01:23]}  Bg6 {[%clk 0:01:36]} 24. b4 {[%clk 0:01:20]}  Bf6 {[%clk 0:01:33]} 25. Rd1 {[%clk 0:01:15]}  Re7 {[%clk 0:01:33]} 26. Ra3 {[%clk 0:01:11]}  Rbe8 {[%clk 0:01:32]} 27. Bf3 {[%clk 0:01:07]}  Bh7 {[%clk 0:01:20]} 28. Be2 {[%clk 0:00:58]}  g5 {[%clk 0:01:20]} 29. Bd3 {[%clk 0:00:55]}  Bxd3+ {[%clk 0:01:16]} 30. Rdxd3 {[%clk 0:00:56]}  Bxd4 {[%clk 0:01:14]} 31. Rxd4 {[%clk 0:00:56]}  Re4 {[%clk 0:01:13]} 32. Rad3 {[%clk 0:00:55]}  R4e5 {[%clk 0:00:51]} 33. Ke2 {[%clk 0:00:44]}  f5 {[%clk 0:00:49]} 34. f4 {[%clk 0:00:28]}  Kg7 {[%clk 0:00:45]} 35. fxe5 {[%clk 0:00:28]} 1-0


[Site "https://www.chess.com"]

[Event "Titled Tuesday Blitz March 07 Early 2023"]
[White "Zarnicki, Pablo"]
[Black "Miszler, Levente"]
[WhiteFideId "100137"]
[BlackFideId "763276"]
[WhiteElo "2468"]
[BlackElo "2176"]
[Result "1-0"]
[Round "07"]
[TimeControl "180+2"]
[Date "2023.03.07"]
[WhiteClock "0:01:14"]
[BlackClock "0:00:08"]

1. e4 {[%clk 0:02:44]}  c6 {[%clk 0:02:54]} 2. d4 {[%clk 0:02:43]}  d5 {[%clk 0:02:54]} 3. Nc3 {[%clk 0:02:44]}  dxe4 {[%clk 0:02:52]} 4. Nxe4 {[%clk 0:02:45]}  Nf6 {[%clk 0:02:52]} 5. Nxf6+ {[%clk 0:02:44]}  exf6 {[%clk 0:02:53]} 6. Bc4 {[%clk 0:02:43]}  Bd6 {[%clk 0:02:46]} 7. Qe2+ {[%clk 0:02:43]}  Qe7 {[%clk 0:02:46]} 8. Qxe7+ {[%clk 0:02:43]}  Kxe7 {[%clk 0:02:47]} 9. Ne2 {[%clk 0:02:42]}  Be6 {[%clk 0:02:46]} 10. Bb3 {[%clk 0:02:40]}  Nd7 {[%clk 0:02:43]} 11. Bf4 {[%clk 0:02:41]}  Rhe8 {[%clk 0:02:42]} 12. O-O {[%clk 0:02:33]}  Nf8 {[%clk 0:02:32]} 13. Rfe1 {[%clk 0:02:28]}  Ng6 {[%clk 0:02:32]} 14. Bxd6+ {[%clk 0:02:28]}  Kxd6 {[%clk 0:02:33]} 15. c4 {[%clk 0:02:26]}  Re7 {[%clk 0:02:21]} 16. Nc3 {[%clk 0:02:18]}  Rae8 {[%clk 0:02:20]} 17. g3 {[%clk 0:02:11]}  Bf5 {[%clk 0:02:14]} 18. Rxe7 {[%clk 0:02:09]}  Rxe7 {[%clk 0:02:15]} 19. f3 {[%clk 0:02:09]}  Nf8 {[%clk 0:02:09]} 20. c5+ {[%clk 0:02:01]}  Kd7 {[%clk 0:02:06]} 21. Kf2 {[%clk 0:02:00]}  Be6 {[%clk 0:02:06]} 22. d5 {[%clk 0:02:00]}  cxd5 {[%clk 0:02:05]} 23. Nxd5 {[%clk 0:01:56]}  Bxd5 {[%clk 0:02:00]} 24. Bxd5 {[%clk 0:01:57]}  Kc7 {[%clk 0:02:00]} 25. b4 {[%clk 0:01:57]}  Ne6 {[%clk 0:01:56]} 26. Re1 {[%clk 0:01:53]}  f5 {[%clk 0:01:07]} 27. f4 {[%clk 0:01:45]}  Rd7 {[%clk 0:00:56]} 28. Bxe6 {[%clk 0:01:44]}  fxe6 {[%clk 0:00:57]} 29. Rxe6 {[%clk 0:01:45]}  Rd4 {[%clk 0:00:57]} 30. Re7+ {[%clk 0:01:39]}  Kc6 {[%clk 0:00:57]} 31. a3 {[%clk 0:01:31]}  Rd3 {[%clk 0:00:48]} 32. Rxg7 {[%clk 0:01:31]}  Rxa3 {[%clk 0:00:48]} 33. Rxh7 {[%clk 0:01:31]}  Rb3 {[%clk 0:00:48]} 34. h4 {[%clk 0:01:27]}  Rxb4 {[%clk 0:00:49]} 35. h5 {[%clk 0:01:27]}  Rb2+ {[%clk 0:00:47]} 36. Kg1 {[%clk 0:01:27]}  Rb1+ {[%clk 0:00:40]} 37. Kg2 {[%clk 0:01:27]}  Rb2+ {[%clk 0:00:41]} 38. Kh3 {[%clk 0:01:27]}  Rb1 {[%clk 0:00:41]} 39. Kh4 {[%clk 0:01:28]}  a5 {[%clk 0:00:41]} 40. h6 {[%clk 0:01:26]}  a4 {[%clk 0:00:40]} 41. Rh8 {[%clk 0:01:27]}  Kxc5 {[%clk 0:00:33]} 42. Kg5 {[%clk 0:01:22]}  Kb4 {[%clk 0:00:15]} 43. Kxf5 {[%clk 0:01:16]}  a3 {[%clk 0:00:14]} 44. Ra8 {[%clk 0:01:16]}  Rh1 {[%clk 0:00:12]} 45. Kg6 {[%clk 0:01:16]}  Kb3 {[%clk 0:00:09]} 46. f5 {[%clk 0:01:14]}  a2 {[%clk 0:00:08]} 47. f6 {[%clk 0:01:14]}  a1=Q {[%clk 0:00:08]} 48. Rxa1 {[%clk 0:01:14]}  Rxa1 {[%clk 0:00:08]} 49. h7 {[%clk 0:01:14]}  Rh1 {[%clk 0:00:08]} 50. f7 {[%clk 0:01:14]} 1-0


[Site "https://www.chess.com"]